[Event "Titled Tuesday Blitz March 28 Late 2023"]
[White "Prieto Aranguren, Alain"]
[Black "Krstulovic, Alex"]
[WhiteFideId "2268906"]
[BlackFideId "760056"]
[WhiteElo "2209"]
[BlackElo "2311"]
[Result "0-1"]
[Round "08"]
[TimeControl "180+2"]
[Date "2023.03.28"]
[WhiteClock "0:00:03"]
[BlackClock "0:00:17"]

1. e4 {[%clk 0:02:50]}  c5 {[%clk 0:02:59]} 2. Nf3 {[%clk 0:02:49]}  d6 {[%clk 0:03:00]} 3. Bc4 {[%clk 0:02:48]}  Nf6 {[%clk 0:02:56]} 4. d3 {[%clk 0:02:47]}  e6 {[%clk 0:02:56]} 5. O-O {[%clk 0:02:47]}  Be7 {[%clk 0:02:56]} 6. Re1 {[%clk 0:02:45]}  O-O {[%clk 0:02:56]} 7. Nbd2 {[%clk 0:02:45]}  d5 {[%clk 0:02:48]} 8. Bb3 {[%clk 0:02:44]}  a5 {[%clk 0:02:46]} 9. a4 {[%clk 0:02:41]}  Nc6 {[%clk 0:02:43]} 10. e5 {[%clk 0:02:31]}  Nd7 {[%clk 0:02:43]} 11. Nf1 {[%clk 0:02:31]}  d4 {[%clk 0:02:32]} 12. Ng3 {[%clk 0:02:29]}  Re8 {[%clk 0:02:29]} 13. Nh5 {[%clk 0:02:22]}  Nf8 {[%clk 0:02:27]} 14. Bf4 {[%clk 0:01:53]}  g6 {[%clk 0:02:20]} 15. Nf6+ {[%clk 0:01:52]}  Bxf6 {[%clk 0:02:20]} 16. exf6 {[%clk 0:01:52]}  Qxf6 {[%clk 0:02:18]} 17. Bg3 {[%clk 0:01:50]}  e5 {[%clk 0:02:09]} 18. Qd2 {[%clk 0:01:41]}  Be6 {[%clk 0:02:00]} 19. Bh4 {[%clk 0:01:37]}  Qg7 {[%clk 0:01:57]} 20. Bg5 {[%clk 0:01:37]}  f6 {[%clk 0:01:53]} 21. Bh6 {[%clk 0:01:37]}  Qf7 {[%clk 0:01:53]} 22. Bxe6 {[%clk 0:01:34]}  Nxe6 {[%clk 0:01:52]} 23. h4 {[%clk 0:01:16]}  Ne7 {[%clk 0:01:51]} 24. g4 {[%clk 0:00:56]}  Nd5 {[%clk 0:01:37]} 25. c3 {[%clk 0:00:46]}  Nef4 {[%clk 0:01:27]} 26. cxd4 {[%clk 0:00:44]}  cxd4 {[%clk 0:01:27]} 27. Rac1 {[%clk 0:00:39]}  Qd7 {[%clk 0:01:22]} 28. Nh2 {[%clk 0:00:35]}  Qxa4 {[%clk 0:01:13]} 29. Qc2 {[%clk 0:00:24]}  Qxc2 {[%clk 0:01:10]} 30. Rxc2 {[%clk 0:00:24]}  Nxd3 {[%clk 0:01:06]} 31. Rd1 {[%clk 0:00:23]}  N3b4 {[%clk 0:01:00]} 32. Rc5 {[%clk 0:00:22]}  Rec8 {[%clk 0:00:51]} 33. Rdc1 {[%clk 0:00:21]}  Rxc5 {[%clk 0:00:50]} 34. Rxc5 {[%clk 0:00:21]}  b6 {[%clk 0:00:50]} 35. Rc4 {[%clk 0:00:20]}  Kf7 {[%clk 0:00:36]} 36. Nf3 {[%clk 0:00:20]}  Ke6 {[%clk 0:00:36]} 37. Nd2 {[%clk 0:00:18]}  a4 {[%clk 0:00:35]} 38. Ne4 {[%clk 0:00:16]}  d3 {[%clk 0:00:31]} 39. Bd2 {[%clk 0:00:14]}  b5 {[%clk 0:00:23]} 40. Rc5 {[%clk 0:00:13]}  a3 {[%clk 0:00:21]} 41. bxa3 {[%clk 0:00:13]}  Rxa3 {[%clk 0:00:21]} 42. Rxb5 {[%clk 0:00:12]}  Ra1+ {[%clk 0:00:21]} 43. Kh2 {[%clk 0:00:11]}  Nc6 {[%clk 0:00:20]} 44. Rc5 {[%clk 0:00:09]}  Nd4 {[%clk 0:00:20]} 45. Rc8 {[%clk 0:00:06]}  Nf3+ {[%clk 0:00:20]} 46. Kg3 {[%clk 0:00:05]}  Nxd2 {[%clk 0:00:21]} 47. Nxd2 {[%clk 0:00:05]}  f5 {[%clk 0:00:20]} 48. g5 {[%clk 0:00:05]}  Ra2 {[%clk 0:00:19]} 49. Nc4 {[%clk 0:00:03]}  d2 {[%clk 0:00:18]} 50. Re8+ {[%clk 0:00:03]}  Kd7 {[%clk 0:00:17]} 0-1


[Site "https://www.chess.com"]

[Event "Titled Tuesday Blitz March 28 Late 2023"]
[White "Kiselev, Pavel"]
[Black "Quinones Garcia, Santiago"]
[WhiteFideId "4191102"]
[BlackFideId "4408497"]
[WhiteElo "2145"]
[BlackElo "2263"]
[Result "0-1"]
[Round "08"]
[TimeControl "180+2"]
[Date "2023.03.28"]
[WhiteClock "0:00:18"]
[BlackClock "0:00:22"]

1. Nf3 {[%clk 0:02:59]}  d5 {[%clk 0:03:00]} 2. c4 {[%clk 0:02:58]}  c6 {[%clk 0:03:00]} 3. d4 {[%clk 0:02:59]}  Nf6 {[%clk 0:03:00]} 4. e3 {[%clk 0:02:59]}  g6 {[%clk 0:02:59]} 5. b3 {[%clk 0:02:58]}  Bg7 {[%clk 0:03:00]} 6. Bd3 {[%clk 0:02:57]}  O-O {[%clk 0:03:00]} 7. O-O {[%clk 0:02:57]}  Nbd7 {[%clk 0:03:00]} 8. Bb2 {[%clk 0:02:58]}  a5 {[%clk 0:02:59]} 9. Nc3 {[%clk 0:02:58]}  Re8 {[%clk 0:02:58]} 10. e4 {[%clk 0:02:58]}  dxe4 {[%clk 0:02:58]} 11. Nxe4 {[%clk 0:02:59]}  Nxe4 {[%clk 0:02:58]} 12. Bxe4 {[%clk 0:03:00]}  Nf6 {[%clk 0:02:59]} 13. Bc2 {[%clk 0:02:59]}  a4 {[%clk 0:02:59]} 14. bxa4 {[%clk 0:02:58]}  Be6 {[%clk 0:02:58]} 15. Bb3 {[%clk 0:02:58]}  Nd7 {[%clk 0:02:52]} 16. Qe2 {[%clk 0:02:56]}  Bg4 {[%clk 0:02:50]} 17. h3 {[%clk 0:02:56]}  Bxf3 {[%clk 0:02:49]} 18. Qxf3 {[%clk 0:02:56]}  Nb6 {[%clk 0:02:26]} 19. Rad1 {[%clk 0:02:50]}  Nxa4 {[%clk 0:02:26]} 20. c5 {[%clk 0:02:44]}  e6 {[%clk 0:02:24]} 21. Ba1 {[%clk 0:02:42]}  Qa5 {[%clk 0:02:14]} 22. Rd3 {[%clk 0:02:29]}  Qb5 {[%clk 0:01:55]} 23. Rb1 {[%clk 0:02:22]}  Qa6 {[%clk 0:01:45]} 24. Rdd1 {[%clk 0:02:11]}  Rec8 {[%clk 0:01:31]} 25. Rdc1 {[%clk 0:01:53]}  Rc7 {[%clk 0:01:27]} 26. Rc4 {[%clk 0:01:49]}  b5 {[%clk 0:01:03]} 27. cxb6 {[%clk 0:01:50]}  Nxb6 {[%clk 0:01:04]} 28. Rxc6 {[%clk 0:01:50]}  Rxc6 {[%clk 0:01:00]} 29. Qxc6 {[%clk 0:01:51]}  Rc8 {[%clk 0:01:00]} 30. Qf3 {[%clk 0:01:47]}  h5 {[%clk 0:00:49]} 31. g4 {[%clk 0:01:24]}  hxg4 {[%clk 0:00:49]} 32. hxg4 {[%clk 0:01:25]}  Rd8 {[%clk 0:00:49]} 33. Rd1 {[%clk 0:01:18]}  Nd5 {[%clk 0:00:47]} 34. g5 {[%clk 0:01:12]}  Qb6 {[%clk 0:00:38]} 35. Qe4 {[%clk 0:01:08]}  Rd6 {[%clk 0:00:35]} 36. Kg2 {[%clk 0:01:07]}  Qd8 {[%clk 0:00:34]} 37. f4 {[%clk 0:01:07]}  Ne7 {[%clk 0:00:33]} 38. a4 {[%clk 0:01:01]}  Nf5 {[%clk 0:00:31]} 39. Bc4 {[%clk 0:00:22]}  Qa5 {[%clk 0:00:28]} 40. Bb5 {[%clk 0:00:21]}  Rd8 {[%clk 0:00:26]} 41. d5 {[%clk 0:00:20]}  Bxa1 {[%clk 0:00:24]} 42. Rxa1 {[%clk 0:00:19]}  Rxd5 {[%clk 0:00:23]} 43. Rc1 {[%clk 0:00:19]}  Qd2+ {[%clk 0:00:22]} 44. Qe2 {[%clk 0:00:18]}  Qxc1 {[%clk 0:00:22]} 45. a5 {[%clk 0:00:18]}  Rd2 {[%clk 0:00:22]} 0-1


[Site "https://www.chess.com"]

[Event "Titled Tuesday Blitz March 28 Late 2023"]
[White "Osmonbekov, Talaibek"]
[Black "Kubatko, Ivan"]
[WhiteFideId "2017253"]
[BlackFideId "24111473"]
[WhiteElo "2135"]
[BlackElo "2285"]
[Result "1-0"]
[Round "08"]
[TimeControl "180+2"]
[Date "2023.03.28"]
[WhiteClock "0:00:14"]
[BlackClock "0:00:01"]

1. d4 {[%clk 0:03:00]}  Nf6 {[%clk 0:02:54]} 2. Bf4 {[%clk 0:03:01]}  d5 {[%clk 0:02:54]} 3. Nc3 {[%clk 0:03:01]}  a6 {[%clk 0:02:53]} 4. e3 {[%clk 0:03:02]}  c5 {[%clk 0:02:53]} 5. Nf3 {[%clk 0:03:00]}  Nc6 {[%clk 0:02:51]} 6. dxc5 {[%clk 0:02:55]}  e6 {[%clk 0:02:48]} 7. Na4 {[%clk 0:02:52]}  Nd7 {[%clk 0:02:44]} 8. c4 {[%clk 0:02:41]}  Nxc5 {[%clk 0:02:38]} 9. cxd5 {[%clk 0:02:37]}  Nxa4 {[%clk 0:02:23]} 10. dxc6 {[%clk 0:02:13]}  Qa5+ {[%clk 0:01:54]} 11. Nd2 {[%clk 0:02:07]}  bxc6 {[%clk 0:01:29]} 12. Qc2 {[%clk 0:01:57]}  Bd7 {[%clk 0:01:21]} 13. Bd3 {[%clk 0:01:49]}  Bb4 {[%clk 0:01:14]} 14. e4 {[%clk 0:01:27]}  e5 {[%clk 0:00:56]} 15. Be3 {[%clk 0:01:17]}  Bc5 {[%clk 0:00:44]} 16. O-O {[%clk 0:01:12]}  Bxe3 {[%clk 0:00:43]} 17. fxe3 {[%clk 0:01:13]}  Nb6 {[%clk 0:00:32]} 18. Nb3 {[%clk 0:00:32]}  Qa4 {[%clk 0:00:22]} 19. Qc5 {[%clk 0:00:28]}  Nc8 {[%clk 0:00:13]} 20. Qxe5+ {[%clk 0:00:27]}  Ne7 {[%clk 0:00:14]} 21. Qxg7 {[%clk 0:00:24]}  O-O-O {[%clk 0:00:13]} 22. Nc5 {[%clk 0:00:19]}  Qa5 {[%clk 0:00:06]} 23. Bxa6+ {[%clk 0:00:20]}  Kc7 {[%clk 0:00:05]} 24. Qe5+ {[%clk 0:00:14]}  Kb6 {[%clk 0:00:03]} 25. b4 {[%clk 0:00:14]}  Be6 {[%clk 0:00:01]} 26. bxa5+ {[%clk 0:00:14]} 1-0


[Site "https://www.chess.com"]

[Event "Titled Tuesday Blitz March 28 Late 2023"]
[White "ritanovikova"]
[Black "Vivas Zamora, Fabian Ernesto"]
[BlackFideId "3902480"]
[WhiteElo "2221"]
[BlackElo "2262"]
[Result "0-1"]
[Round "08"]
[TimeControl "180+2"]
[Date "2023.03.28"]
[WhiteClock "0:00:05"]
[BlackClock "0:00:07"]

1. e4 {[%clk 0:03:00]}  e5 {[%clk 0:02:59]} 2. Nf3 {[%clk 0:03:00]}  Nc6 {[%clk 0:03:00]} 3. Bb5 {[%clk 0:02:59]}  Nf6 {[%clk 0:03:00]} 4. Nc3 {[%clk 0:02:58]}  Nd4 {[%clk 0:02:59]} 5. Bc4 {[%clk 0:02:51]}  Bc5 {[%clk 0:02:57]} 6. h3 {[%clk 0:02:50]}  O-O {[%clk 0:02:53]} 7. d3 {[%clk 0:02:50]}  c6 {[%clk 0:02:46]} 8. O-O {[%clk 0:02:41]}  b5 {[%clk 0:02:44]} 9. Bb3 {[%clk 0:02:39]}  a5 {[%clk 0:02:45]} 10. a4 {[%clk 0:02:17]}  Nxb3 {[%clk 0:02:44]} 11. cxb3 {[%clk 0:02:18]}  b4 {[%clk 0:02:40]} 12. Ne2 {[%clk 0:02:18]}  d6 {[%clk 0:02:36]} 13. Be3 {[%clk 0:02:10]}  Qb6 {[%clk 0:02:30]} 14. Qd2 {[%clk 0:02:09]}  Ba6 {[%clk 0:02:27]} 15. Rfd1 {[%clk 0:02:07]}  Rfe8 {[%clk 0:02:22]} 16. Rac1 {[%clk 0:02:07]}  Bxe3 {[%clk 0:02:22]} 17. Qxe3 {[%clk 0:02:04]}  Qxe3 {[%clk 0:02:22]} 18. fxe3 {[%clk 0:02:05]}  c5 {[%clk 0:02:22]} 19. Ng3 {[%clk 0:01:55]}  g6 {[%clk 0:01:45]} 20. Kf2 {[%clk 0:01:55]}  Rac8 {[%clk 0:01:41]} 21. Ke1 {[%clk 0:01:54]}  h5 {[%clk 0:01:39]} 22. Kd2 {[%clk 0:01:53]}  Kg7 {[%clk 0:01:36]} 23. Rf1 {[%clk 0:01:52]}  Rc7 {[%clk 0:01:35]} 24. Rf2 {[%clk 0:01:52]}  Ng8 {[%clk 0:01:26]} 25. Rcf1 {[%clk 0:01:39]}  Bc8 {[%clk 0:01:24]} 26. Kc2 {[%clk 0:01:31]}  f6 {[%clk 0:01:21]} 27. Nd2 {[%clk 0:01:31]}  Be6 {[%clk 0:01:20]} 28. Nc4 {[%clk 0:01:30]}  Bxc4 {[%clk 0:01:14]} 29. bxc4 {[%clk 0:01:31]}  b3+ {[%clk 0:01:12]} 30. Kxb3 {[%clk 0:01:31]}  Rb8+ {[%clk 0:01:12]} 31. Kc3 {[%clk 0:01:29]}  Rcb7 {[%clk 0:01:12]} 32. Rc2 {[%clk 0:01:07]}  Rb3+ {[%clk 0:01:12]} 33. Kd2 {[%clk 0:01:07]}  Rxb2 {[%clk 0:01:06]} 34. Rc1 {[%clk 0:01:07]}  Rxc2+ {[%clk 0:01:04]} 35. Rxc2 {[%clk 0:01:07]}  Rb4 {[%clk 0:01:03]} 36. Ra2 {[%clk 0:01:07]}  Ne7 {[%clk 0:00:57]} 37. Ne2 {[%clk 0:01:06]}  Rb1 {[%clk 0:00:57]} 38. Nc1 {[%clk 0:01:00]}  Nc6 {[%clk 0:00:54]} 39. Kc2 {[%clk 0:00:55]}  Rb8 {[%clk 0:00:54]} 40. Rb2 {[%clk 0:00:52]}  Nb4+ {[%clk 0:00:54]} 41. Kc3 {[%clk 0:00:52]}  f5 {[%clk 0:00:53]} 42. exf5 {[%clk 0:00:50]}  gxf5 {[%clk 0:00:54]} 43. Rf2 {[%clk 0:00:48]}  Kg6 {[%clk 0:00:50]} 44. Rd2 {[%clk 0:00:43]}  Kf6 {[%clk 0:00:49]} 45. Nb3 {[%clk 0:00:42]}  Nc6 {[%clk 0:00:46]} 46. d4 {[%clk 0:00:39]}  cxd4+ {[%clk 0:00:43]} 47. exd4 {[%clk 0:00:40]}  Rxb3+ {[%clk 0:00:39]} 48. Kxb3 {[%clk 0:00:39]}  Nxd4+ {[%clk 0:00:40]} 49. Kc3 {[%clk 0:00:37]}  f4 {[%clk 0:00:31]} 50. Kd3 {[%clk 0:00:36]}  Nb3 {[%clk 0:00:29]} 51. Rb2 {[%clk 0:00:33]}  Nc5+ {[%clk 0:00:30]} 52. Ke2 {[%clk 0:00:32]}  Nxa4 {[%clk 0:00:29]} 53. Rb8 {[%clk 0:00:24]}  Nc5 {[%clk 0:00:26]} 54. Ra8 {[%clk 0:00:22]}  a4 {[%clk 0:00:26]} 55. Kf3 {[%clk 0:00:17]}  Kf5 {[%clk 0:00:20]} 56. Rf8+ {[%clk 0:00:13]}  Kg5 {[%clk 0:00:20]} 57. Rg8+ {[%clk 0:00:13]}  Kf5 {[%clk 0:00:18]} 58. Rf8+ {[%clk 0:00:13]}  Kg5 {[%clk 0:00:18]} 59. Rg8+ {[%clk 0:00:13]}  Kf6 {[%clk 0:00:18]} 60. Rf8+ {[%clk 0:00:13]}  Ke7 {[%clk 0:00:18]} 61. Ra8 {[%clk 0:00:13]}  Ke6 {[%clk 0:00:15]} 62. Re8+ {[%clk 0:00:12]}  Kd7 {[%clk 0:00:15]} 63. Ra8 {[%clk 0:00:12]}  Kc6 {[%clk 0:00:16]} 64. g4 {[%clk 0:00:10]}  fxg3 {[%clk 0:00:14]} 65. Kxg3 {[%clk 0:00:10]}  Kb7 {[%clk 0:00:14]} 66. Ra5 {[%clk 0:00:10]}  Kb6 {[%clk 0:00:13]} 67. Rb5+ {[%clk 0:00:10]}  Ka6 {[%clk 0:00:12]} 68. Rb1 {[%clk 0:00:09]}  Ka5 {[%clk 0:00:11]} 69. Kh4 {[%clk 0:00:09]}  a3 {[%clk 0:00:11]} 70. Kxh5 {[%clk 0:00:09]}  Ka4 {[%clk 0:00:09]} 71. Kg6 {[%clk 0:00:09]}  Nb3 {[%clk 0:00:08]} 72. h4 {[%clk 0:00:09]}  a2 {[%clk 0:00:08]} 73. Rg1 {[%clk 0:00:09]}  Nd2 {[%clk 0:00:01]} 74. h5 {[%clk 0:00:08]}  Nb1 {[%clk 0:00:01]} 75. h6 {[%clk 0:00:05]}  a1=Q {[%clk 0:00:02]} 76. h7 {[%clk 0:00:05]}  e4 {[%clk 0:00:02]} 77. Rh1 {[%clk 0:00:04]}  Qe5 {[%clk 0:00:02]} 78. h8=Q {[%clk 0:00:04]}  Qxh8 {[%clk 0:00:02]} 79. Rxh8 {[%clk 0:00:05]}  e3 {[%clk 0:00:03]} 80. Re8 {[%clk 0:00:05]}  Nd2 {[%clk 0:00:03]} 81. Rxe3 {[%clk 0:00:05]}  Nxc4 {[%clk 0:00:03]} 82. Rd3 {[%clk 0:00:05]}  Ne5+ {[%clk 0:00:04]} 83. Kf5 {[%clk 0:00:04]}  Nxd3 {[%clk 0:00:05]} 84. Ke4 {[%clk 0:00:05]}  Nb4 {[%clk 0:00:04]} 85. Kd4 {[%clk 0:00:05]}  Kb5 {[%clk 0:00:05]} 86. Kc3 {[%clk 0:00:04]}  Kc5 {[%clk 0:00:05]} 87. Kd2 {[%clk 0:00:05]}  Kd4 {[%clk 0:00:06]} 88. Kd1 {[%clk 0:00:05]}  d5 {[%clk 0:00:07]} 0-1


[Site "https://www.chess.com"]

[Event "Titled Tuesday Blitz March 28 Late 2023"]
[White "Kozin, Yuri"]
[Black "Mendez Machado, Andre"]
[WhiteFideId "4129920"]
[BlackFideId "6603793"]
[WhiteElo "2416"]
[BlackElo "1984"]
[Result "1-0"]
[Round "08"]
[TimeControl "180+2"]
[Date "2023.03.28"]
[WhiteClock "0:00:09"]
[BlackClock "0:00:16"]

1. e4 {[%clk 0:02:51]}  e5 {[%clk 0:02:59]} 2. Nf3 {[%clk 0:02:51]}  Nc6 {[%clk 0:02:58]} 3. Bb5 {[%clk 0:02:52]}  a6 {[%clk 0:02:58]} 4. Ba4 {[%clk 0:02:52]}  Nf6 {[%clk 0:02:58]} 5. O-O {[%clk 0:02:52]}  b5 {[%clk 0:02:58]} 6. Bb3 {[%clk 0:02:52]}  Bc5 {[%clk 0:02:59]} 7. d3 {[%clk 0:02:52]}  d6 {[%clk 0:02:53]} 8. Be3 {[%clk 0:02:52]}  Ba7 {[%clk 0:02:44]} 9. h3 {[%clk 0:02:50]}  O-O {[%clk 0:02:42]} 10. a4 {[%clk 0:02:50]}  Rb8 {[%clk 0:02:37]} 11. Bxa7 {[%clk 0:02:41]}  Nxa7 {[%clk 0:02:37]} 12. axb5 {[%clk 0:02:42]}  Nxb5 {[%clk 0:02:34]} 13. Nbd2 {[%clk 0:02:42]}  Na7 {[%clk 0:02:14]} 14. Nc4 {[%clk 0:02:37]}  Nc6 {[%clk 0:02:14]} 15. Ne3 {[%clk 0:02:27]}  Kh8 {[%clk 0:02:13]} 16. Ng5 {[%clk 0:02:15]}  Qe7 {[%clk 0:01:53]} 17. f4 {[%clk 0:02:04]}  Nd4 {[%clk 0:01:43]} 18. Ba2 {[%clk 0:01:24]}  exf4 {[%clk 0:01:37]} 19. Rxf4 {[%clk 0:01:22]}  Qe5 {[%clk 0:01:29]} 20. Rxf6 {[%clk 0:00:59]}  Qxf6 {[%clk 0:01:22]} 21. Qh5 {[%clk 0:00:52]}  Ne2+ {[%clk 0:01:08]} 22. Kh2 {[%clk 0:00:43]}  Qf4+ {[%clk 0:00:53]} 23. g3 {[%clk 0:00:42]}  Qf2+ {[%clk 0:00:49]} 24. Ng2 {[%clk 0:00:39]}  Qxg3+ {[%clk 0:00:23]} 25. Kh1 {[%clk 0:00:39]}  h6 {[%clk 0:00:19]} 26. Nxf7+ {[%clk 0:00:18]}  Rxf7 {[%clk 0:00:19]} 27. Bxf7 {[%clk 0:00:10]}  Bxh3 {[%clk 0:00:18]} 28. Qxe2 {[%clk 0:00:10]}  Rf8 {[%clk 0:00:17]} 29. Rf1 {[%clk 0:00:09]}  Bd7 {[%clk 0:00:13]} 30. Qf2 {[%clk 0:00:07]}  Qh3+ {[%clk 0:00:13]} 31. Kg1 {[%clk 0:00:07]}  Be8 {[%clk 0:00:13]} 32. Nf4 {[%clk 0:00:03]}  Qg4+ {[%clk 0:00:12]} 33. Qg2 {[%clk 0:00:03]}  Qxg2+ {[%clk 0:00:12]} 34. Kxg2 {[%clk 0:00:04]}  Rxf7 {[%clk 0:00:12]} 35. Ng6+ {[%clk 0:00:05]}  Kh7 {[%clk 0:00:11]} 36. Nf4 {[%clk 0:00:04]}  g5 {[%clk 0:00:10]} 37. Nd5 {[%clk 0:00:04]}  Rxf1 {[%clk 0:00:10]} 38. Kxf1 {[%clk 0:00:05]}  c5 {[%clk 0:00:10]} 39. Nf6+ {[%clk 0:00:05]}  Kg6 {[%clk 0:00:10]} 40. Nxe8 {[%clk 0:00:06]}  Kh5 {[%clk 0:00:11]} 41. Nxd6 {[%clk 0:00:07]}  Kg4 {[%clk 0:00:12]} 42. Nb7 {[%clk 0:00:07]}  Kg3 {[%clk 0:00:12]} 43. e5 {[%clk 0:00:07]}  h5 {[%clk 0:00:13]} 44. e6 {[%clk 0:00:08]}  h4 {[%clk 0:00:14]} 45. e7 {[%clk 0:00:09]}  h3 {[%clk 0:00:15]} 46. e8=Q {[%clk 0:00:09]}  h2 {[%clk 0:00:16]} 47. Qe5+ {[%clk 0:00:09]}  Kh3 {[%clk 0:00:16]} 48. Qf5+ {[%clk 0:00:09]}  Kg3 {[%clk 0:00:16]} 49. Qf2+ {[%clk 0:00:09]} 1-0


[Site "https://www.chess.com"]

[Event "Titled Tuesday Blitz March 28 Late 2023"]
[White "Torrente, Alejandro Josue"]
[Black "Dahlgren, James Allen"]
[WhiteFideId "4437969"]
[BlackFideId "22256873"]
[WhiteElo "2025"]
[BlackElo "2206"]
[Result "1-0"]
[Round "08"]
[TimeControl "180+2"]
[Date "2023.03.28"]
[WhiteClock "0:00:37"]
[BlackClock "0:00:01"]

1. e4 {[%clk 0:03:00]}  e6 {[%clk 0:02:58]} 2. d4 {[%clk 0:03:00]}  c5 {[%clk 0:02:58]} 3. Nc3 {[%clk 0:03:01]}  cxd4 {[%clk 0:02:58]} 4. Qxd4 {[%clk 0:03:02]}  Nc6 {[%clk 0:02:58]} 5. Qd1 {[%clk 0:03:03]}  Nf6 {[%clk 0:02:58]} 6. Bd3 {[%clk 0:03:02]}  Bb4 {[%clk 0:02:58]} 7. Bd2 {[%clk 0:03:02]}  d5 {[%clk 0:02:58]} 8. exd5 {[%clk 0:03:02]}  exd5 {[%clk 0:02:59]} 9. a3 {[%clk 0:03:02]}  Be7 {[%clk 0:02:56]} 10. Nf3 {[%clk 0:02:59]}  O-O {[%clk 0:02:55]} 11. h3 {[%clk 0:02:59]}  h6 {[%clk 0:02:52]} 12. O-O {[%clk 0:02:59]}  Be6 {[%clk 0:02:51]} 13. Re1 {[%clk 0:03:00]}  a6 {[%clk 0:02:46]} 14. Bf4 {[%clk 0:02:52]}  Qb6 {[%clk 0:02:45]} 15. Ne5 {[%clk 0:02:45]}  Rad8 {[%clk 0:02:44]} 16. Qf3 {[%clk 0:02:34]}  Qxb2 {[%clk 0:02:38]} 17. Na4 {[%clk 0:02:32]}  Qd4 {[%clk 0:02:31]} 18. Nxc6 {[%clk 0:02:32]}  bxc6 {[%clk 0:02:25]} 19. c4 {[%clk 0:02:26]}  dxc4 {[%clk 0:02:19]} 20. Bc2 {[%clk 0:02:26]}  Bd5 {[%clk 0:02:00]} 21. Qe2 {[%clk 0:02:21]}  Rfe8 {[%clk 0:01:57]} 22. Be5 {[%clk 0:02:14]}  Qh4 {[%clk 0:01:43]} 23. Bg3 {[%clk 0:02:09]}  Qg5 {[%clk 0:01:40]} 24. h4 {[%clk 0:01:26]}  Qg4 {[%clk 0:01:29]} 25. Qxg4 {[%clk 0:01:23]}  Nxg4 {[%clk 0:01:30]} 26. Bc7 {[%clk 0:01:15]}  Rc8 {[%clk 0:01:22]} 27. Bb6 {[%clk 0:01:14]}  Bxh4 {[%clk 0:01:18]} 28. g3 {[%clk 0:01:12]}  Bf6 {[%clk 0:01:18]} 29. Rad1 {[%clk 0:01:10]}  Bf3 {[%clk 0:01:10]} 30. Rc1 {[%clk 0:01:06]}  Bd5 {[%clk 0:00:50]} 31. f4 {[%clk 0:01:03]}  Rb8 {[%clk 0:00:47]} 32. Bc5 {[%clk 0:00:59]}  g6 {[%clk 0:00:33]} 33. Nb6 {[%clk 0:00:54]}  Kg7 {[%clk 0:00:23]} 34. Ba4 {[%clk 0:00:53]}  c3 {[%clk 0:00:17]} 35. Rxe8 {[%clk 0:00:51]}  Rxe8 {[%clk 0:00:18]} 36. Nxd5 {[%clk 0:00:52]}  cxd5 {[%clk 0:00:18]} 37. Bxe8 {[%clk 0:00:52]}  d4 {[%clk 0:00:16]} 38. Bb4 {[%clk 0:00:45]}  h5 {[%clk 0:00:10]} 39. Ba4 {[%clk 0:00:43]}  h4 {[%clk 0:00:10]} 40. gxh4 {[%clk 0:00:42]}  Bxh4 {[%clk 0:00:11]} 41. Bc2 {[%clk 0:00:39]}  Ne3 {[%clk 0:00:09]} 42. Bd3 {[%clk 0:00:39]}  Bg3 {[%clk 0:00:07]} 43. Bc5 {[%clk 0:00:37]}  Bxf4 {[%clk 0:00:02]} 44. Bxd4+ {[%clk 0:00:36]}  f6 {[%clk 0:00:01]} 45. Rxc3 {[%clk 0:00:37]} 1-0


[Site "https://www.chess.com"]

[Event "Titled Tuesday Blitz March 28 Late 2023"]
[White "Przybylski, Wojciech"]
[Black "Khatena, Moshe"]
[WhiteFideId "1117599"]
[BlackFideId "2010461"]
[WhiteElo "2222"]
[BlackElo "2165"]
[Result "1-0"]
[Round "08"]
[TimeControl "180+2"]
[Date "2023.03.28"]
[WhiteClock "0:00:58"]
[BlackClock "0:00:20"]

1. d4 {[%clk 0:03:00]}  Nf6 {[%clk 0:02:59]} 2. c4 {[%clk 0:02:59]}  g6 {[%clk 0:02:57]} 3. Nf3 {[%clk 0:02:58]}  Bg7 {[%clk 0:02:58]} 4. Nc3 {[%clk 0:02:57]}  O-O {[%clk 0:02:57]} 5. e4 {[%clk 0:02:57]}  d6 {[%clk 0:02:58]} 6. h3 {[%clk 0:02:55]}  e5 {[%clk 0:02:47]} 7. d5 {[%clk 0:02:54]}  Ne8 {[%clk 0:02:36]} 8. Bg5 {[%clk 0:02:51]}  f6 {[%clk 0:02:32]} 9. Be3 {[%clk 0:02:51]}  h6 {[%clk 0:02:14]} 10. g4 {[%clk 0:02:46]}  f5 {[%clk 0:02:10]} 11. gxf5 {[%clk 0:02:46]}  gxf5 {[%clk 0:02:11]} 12. Bd3 {[%clk 0:02:40]}  Nd7 {[%clk 0:02:02]} 13. exf5 {[%clk 0:02:32]}  Nc5 {[%clk 0:02:01]} 14. Bc2 {[%clk 0:02:22]}  Bxf5 {[%clk 0:01:52]} 15. Bxf5 {[%clk 0:02:21]}  Rxf5 {[%clk 0:01:52]} 16. Bxc5 {[%clk 0:02:15]}  dxc5 {[%clk 0:01:50]} 17. Ne4 {[%clk 0:02:11]}  Qe7 {[%clk 0:01:34]} 18. Rg1 {[%clk 0:02:08]}  Nd6 {[%clk 0:01:26]} 19. Nfd2 {[%clk 0:02:07]}  Raf8 {[%clk 0:01:24]} 20. Qe2 {[%clk 0:01:59]}  Qh4 {[%clk 0:01:17]} 21. Qg4 {[%clk 0:01:43]}  Qxg4 {[%clk 0:01:01]} 22. Rxg4 {[%clk 0:01:42]}  Rf4 {[%clk 0:00:58]} 23. Ke2 {[%clk 0:01:37]}  h5 {[%clk 0:00:55]} 24. Rxf4 {[%clk 0:01:30]}  exf4 {[%clk 0:00:51]} 25. Nxd6 {[%clk 0:01:14]}  cxd6 {[%clk 0:00:50]} 26. Rb1 {[%clk 0:01:13]}  Bd4 {[%clk 0:00:33]} 27. Kf3 {[%clk 0:01:11]}  Kg7 {[%clk 0:00:32]} 28. Ne4 {[%clk 0:01:09]}  Be5 {[%clk 0:00:30]} 29. b4 {[%clk 0:01:07]}  b6 {[%clk 0:00:23]} 30. Ng5 {[%clk 0:01:00]}  Kf6 {[%clk 0:00:20]} 31. Nh7+ {[%clk 0:01:00]}  Ke7 {[%clk 0:00:19]} 32. Nxf8 {[%clk 0:01:00]}  Kxf8 {[%clk 0:00:20]} 33. Ke4 {[%clk 0:00:58]} 1-0


[Site "https://www.chess.com"]